bitfinex/quotes_BTCUSD_20251015
["timestamp","ask_amount","ask_price","bid_price","bid_amount"]
[1760544999044,0.18014772,111020.0,111010.0,1.00680957]
[1760544999303,0.18014772,111020.0,111010.0,0.27035516]
[1760544999750,0.18013214,111030.0,111010.0,0.27035516]
[1760544999953,0.18013214,111030.0,111020.0,0.18014772]
[1760545000581,0.18014772,111020.0,111010.0,1.00580957]
[1760545000786,0.18014772,111020.0,111010.0,0.09019122]
[1760545000989,0.18014772,111020.0,111010.0,0.28837155]
[1760545001191,0.18014772,111020.0,111010.0,0.27035516]
[1760545001853,0.18014772,111020.0,111010.0,0.27135516]
[1760545002272,0.18014772,111020.0,111010.0,0.09019122]
[1760545002474,0.18014772,111020.0,111010.0,0.0005011]
[1760545002909,0.536833,111020.0,111010.0,0.0005011]
[1760545003134,1.30151333,111020.0,111010.0,0.0005011]
[1760545003341,0.65574904,111020.0,111010.0,0.0005011]
[1760545004807,1.39220345,111020.0,111010.0,0.0005011]
[1760545005024,1.39120345,111020.0,111010.0,0.0005011]
[1760545005239,1.41518367,111020.0,111010.0,0.0005011]
[1760545005492,1.42353136,111020.0,111010.0,0.0005011]
[1760545005760,0.68807695,111020.0,111010.0,0.0005011]
[1760545005967,0.65554468,111020.0,111010.0,0.0005011]
[1760545006436,0.66489595,111020.0,111010.0,0.0005011]
[1760545006693,0.64841503,111020.0,111010.0,0.0005011]
[1760545007201,0.64941503,111020.0,111010.0,0.0005011]
[1760545007441,0.64841503,111020.0,111010.0,0.0005011]
[1760545007672,0.64941503,111020.0,111010.0,0.0005011]
[1760545007898,0.67239525,111020.0,111010.0,0.0005011]
[1760545008146,0.64941503,111020.0,111010.0,0.0005011]
[1760545008877,0.63941503,111020.0,111010.0,0.0005011]
[1760545009691,0.63841503,111020.0,111010.0,0.0005011]
[1760545009943,0.63741503,111020.0,111010.0,0.0005011]
[1760545010202,0.64741503,111020.0,111010.0,0.0005011]
[1760545010443,0.63741503,111020.0,111010.0,0.0005011]
[1760545011202,0.64741503,111020.0,111010.0,0.0005011]
[1760545011476,0.18018018,111000.0,110990.0,0.0004]
[1760545011709,0.18018018,111000.0,110990.0,0.00055041]
[1760545012431,0.18916134,111000.0,110990.0,0.00055041]
[1760545014006,0.27885146,111000.0,110990.0,0.00055041]
[1760545015768,0.18916134,111000.0,110990.0,0.00055041]
[1760545017753,0.18018018,111000.0,110990.0,0.18074682]
[1760545018001,0.1801785,111010.0,110990.0,0.91620123]
[1760545018230,0.1801785,111010.0,110990.0,1.00589135]
[1760545018231,0.18018018,111000.0,110990.0,1.00589135]
[1760545018504,0.18018018,111000.0,110990.0,0.09024053]
[1760545019295,0.18018018,111000.0,110990.0,0.27043694]
[1760545019944,0.1801785,111010.0,110990.0,0.27043694]
[1760545020184,0.1801785,111010.0,111000.0,0.18018018]
[1760545020427,0.18018018,111000.0,110990.0,0.27143694]
[1760545020691,0.18018018,111000.0,110990.0,0.00055041]
[1760545020899,0.18018018,111000.0,110990.0,0.19824087]
[1760545021117,0.18018018,111000.0,110990.0,0.18074682]
[1760545021334,0.18018018,111000.0,110990.0,0.19876646]
[1760545021776,0.18018018,111000.0,110990.0,0.00055041]
[1760545022007,0.19690187,111000.0,110990.0,0.00055041]
[1760545022231,0.28659199,111000.0,110990.0,0.00055041]
[1760545022504,0.63659199,111000.0,110990.0,0.00055041]
[1760545022725,1.45993726,111000.0,110990.0,1e-08]
[1760545022942,1.49189815,111000.0,110990.0,1e-08]
[1760545023385,6.48382193,111000.0,110990.0,1e-08]
[1760545023614,1.25565082,110990.0,110980.0,0.0004]
[1760545023841,6.55764918,110990.0,110980.0,0.0004]
[1760545024288,6.52555163,110990.0,110980.0,0.0004]
[1760545024746,6.52555163,110990.0,110940.0,0.0004]
[1760545024747,0.18025937,110960.0,110940.0,0.0004]
[1760545024983,0.18026137,110950.0,110940.0,0.0004]
[1760545025432,0.54696762,110950.0,110940.0,0.0004]
[1760545025657,0.56623355,110950.0,110940.0,0.0004]
[1760545025896,0.53026137,110950.0,110940.0,0.0004]
[1760545026112,0.54949103,110950.0,110940.0,0.0004]
[1760545026338,0.63918115,110950.0,110940.0,0.0004]
[1760545028417,0.65589542,110950.0,110940.0,0.0004]
[1760545028632,0.66494659,110950.0,110940.0,0.0004]
[1760545031291,0.66694659,110950.0,110940.0,0.0004]
[1760545031954,1.402401,110950.0,110940.0,0.0004]
[1760545032174,6.46164678,110950.0,110940.0,0.0004]
[1760545032394,6.48571029,110950.0,110940.0,0.0004]
[1760545032614,6.48471029,110950.0,110940.0,0.0004]
[1760545032833,6.43658328,110950.0,110940.0,0.0004]
[1760545033584,6.48547464,110950.0,110940.0,0.0004]
[1760545033789,1.51740429,110950.0,110940.0,0.0004]
[1760545034006,5.78194988,110950.0,110940.0,0.0004]
[1760545034222,6.51732709,110950.0,110940.0,0.0004]
[1760545034636,6.51632709,110950.0,110940.0,0.0004]
[1760545035034,6.51732709,110950.0,110940.0,0.0004]
[1760545035452,6.51832709,110950.0,110940.0,0.0004]
[1760545036298,5.78287268,110950.0,110940.0,0.0004]
[1760545036500,0.6908015,110950.0,110940.0,0.0004]
[1760545036722,1.49436784,110950.0,110940.0,0.0004]
[1760545036943,6.51832709,110950.0,110940.0,0.0004]
[1760545037195,1.47043573,110950.0,110940.0,0.0004]
[1760545037714,0.75789496,110950.0,110940.0,0.0004]
[1760545038216,0.7339637,110950.0,110940.0,0.0004]
[1760545038756,0.72595119,110950.0,110940.0,0.0004]
[1760545039008,0.64823232,110950.0,110940.0,0.0004]
[1760545039262,0.67214946,110950.0,110940.0,0.0004]
[1760545039514,0.68875741,110950.0,110940.0,0.0004]
[1760545039842,1.45714147,110950.0,110940.0,0.0004]
[1760545040232,1.45614147,110950.0,110940.0,0.0004]
[1760545040492,1.49232375,110950.0,110940.0,0.0004]
[1760545040728,1.46840661,110950.0,110940.0,0.0004]
[1760545040962,6.51629797,110950.0,110940.0,0.0004]
[1760545041173,6.52595753,110950.0,110940.0,0.0004]
[1760545041374,6.55788718,110950.0,110940.0,0.0004]
[1760545041590,6.53396839,110950.0,110940.0,0.0004]
[1760545041796,5.79851398,110950.0,110940.0,0.0004]
[1760545042003,6.53396839,110950.0,110940.0,0.0004]
[1760545042449,6.53496839,110950.0,110940.0,0.0004]
[1760545042664,0.18029387,110930.0,110920.0,8e-05]
[1760545042884,0.28659194,110930.0,110920.0,0.00023039]
[1760545043097,1.37204635,110930.0,110920.0,0.00023039]
[1760545043317,1.41519676,110930.0,110920.0,0.00023039]
[1760545043770,0.67974235,110930.0,110920.0,0.00023039]
[1760545044206,0.67964706,110930.0,110920.0,0.00023039]
[1760545045843,0.65572755,110930.0,110920.0,0.00023039]
[1760545046495,0.55603743,110930.0,110920.0,0.00023039]
[1760545046711,0.21603743,110930.0,110920.0,0.00023039]
[1760545046919,0.19690182,110930.0,110920.0,0.00023039]
[1760545047771,0.20690182,110930.0,110920.0,0.00023039]
[1760545047996,1.39596586,110930.0,110920.0,0.00023039]
[1760545048220,1.41510147,110930.0,110920.0,0.00023039]
[1760545048476,0.66303911,110930.0,110920.0,0.00023039]
[1760545048723,1.44702691,110930.0,110920.0,0.00023039]
[1760545049147,1.45131485,110930.0,110920.0,0.00023039]
[1760545049369,0.72383527,110930.0,110920.0,0.00023039]
[1760545049608,0.71592774,110930.0,110920.0,0.00023039]
[1760545050076,1.20003067,110930.0,110920.0,0.00023039]
[1760545050558,0.705934,110930.0,110920.0,0.00023039]
[1760545050791,0.66975172,110930.0,110920.0,0.00023039]
[1760545051017,0.05976773,110930.0,110920.0,0.18054052]
[1760545051235,0.21606853,110930.0,110920.0,0.00023039]
[1760545051449,0.5800616,110930.0,110920.0,0.00023039]
[1760545051686,0.03577466,110930.0,110920.0,0.65673592]
[1760545052107,0.01663905,110930.0,110920.0,1.22262144]
[1760545052381,0.01663905,110930.0,110920.0,0.74642604]
[1760545052605,0.01663905,110930.0,110920.0,1.22262144]
[1760545052815,0.0192292,110940.0,110920.0,1.22262144]
[1760545053025,0.03594782,110940.0,110930.0,0.28801337]
[1760545053245,0.03594782,110940.0,110930.0,0.74617939]
[1760545053451,0.03594782,110940.0,110930.0,0.26998399]
[1760545053933,0.03594782,110940.0,110930.0,0.74617939]
[1760545055044,0.03594782,110940.0,110930.0,0.74717939]
[1760545055309,0.01671862,110940.0,110930.0,0.74817939]
[1760545055526,0.01671862,110940.0,110930.0,0.74717939]
[1760545056188,0.01671862,110940.0,110930.0,0.74817939]
[1760545056405,0.01671862,110940.0,110930.0,0.74617939]
[1760545056660,0.01671862,110940.0,110930.0,0.74817939]
[1760545056871,0.01671862,110940.0,110930.0,0.27198399]
[1760545057298,0.01671862,110940.0,110930.0,0.74817939]
[1760545057510,0.53947506,110960.0,110950.0,0.18026137]
[1760545057720,0.55618569,110960.0,110950.0,0.26995149]
[1760545058134,0.37593983,110960.0,110950.0,0.26995149]
[1760545058349,0.19695576,110960.0,110950.0,0.26995149]
[1760545060069,0.01671063,110960.0,110950.0,0.74614689]
[1760545060560,0.0957886,110990.0,110980.0,0.18021265]
[1760545060752,0.29267859,110990.0,110980.0,0.18021265]
[1760545060984,0.22092649,110990.0,110980.0,0.18021265]
[1760545061189,0.56092649,110990.0,110980.0,0.18021265]
[1760545061400,0.03592278,110990.0,110980.0,0.74609817]
[1760545061620,0.01669358,110990.0,110980.0,0.74609817]
[1760545061836,0.19703996,110990.0,110980.0,0.74609817]
[1760545062051,0.01684355,110990.0,110980.0,0.74609817]
[1760545062510,0.19703996,110990.0,110980.0,0.08969012]
[1760545062735,0.18021265,110980.0,110970.0,0.18022238]
[1760545063062,0.18023441,110970.0,110950.0,0.18025174]
[1760545063141,0.18023441,110970.0,110950.0,0.1802564]
[1760545063360,0.19692799,110970.0,110960.0,0.18024513]
[1760545063574,0.19692247,110970.0,110960.0,0.65644053]
[1760545064026,0.19692247,110970.0,110960.0,0.18024513]
[1760545064256,0.18022889,110970.0,110960.0,0.18024513]
[1760545064473,0.52922328,110980.0,110970.0,0.18022889]
[1760545064693,0.01666743,110980.0,110970.0,0.65642429]
[1760545064922,0.18021265,110980.0,110970.0,0.4761954]
[1760545065135,0.01666743,110980.0,110970.0,0.4761954]
[1760545065348,0.18021265,110980.0,110960.0,0.66545278]
[1760545065561,0.19688008,110980.0,110970.0,0.01802288]
[1760545065764,0.19688008,110980.0,110970.0,0.19825177]
[1760545065972,0.19688008,110980.0,110970.0,0.18022889]
[1760545066175,0.01666743,110980.0,110970.0,0.18022889]
[1760545066384,0.18021265,110980.0,110970.0,0.18022889]
[1760545066587,0.19688008,110980.0,110970.0,0.65642429]
[1760545067230,0.01666743,110980.0,110970.0,0.65642429]
[1760545067436,0.18021265,110980.0,110970.0,0.65642429]
[1760545067778,0.18021265,110980.0,110970.0,0.4761954]
[1760545067993,0.18021265,110980.0,110970.0,0.001]
[1760545068203,0.18021265,110980.0,110970.0,0.01637974]
[1760545068413,0.19687255,110980.0,110970.0,0.01637974]
[1760545068835,0.18022889,110970.0,110960.0,0.2789475]
[1760545069041,0.18022889,110970.0,110960.0,0.7551429]
[1760545069252,0.18021265,110980.0,110970.0,0.18022889]
[1760545069480,0.5293562,110990.0,110970.0,0.65642429]
[1760545069903,0.18021265,110980.0,110970.0,0.65642429]
[1760545070651,0.18936648,110990.0,110980.0,0.18021265]
[1760545070825,0.18034638,110990.0,110980.0,0.18021265]
[1760545071039,0.00014997,110990.0,110980.0,0.65640805]
[1760545071260,0.18034638,110990.0,110980.0,0.65640805]
[1760545071497,0.18034638,110990.0,110970.0,0.65642429]
[1760545071715,0.18021265,110980.0,110970.0,0.26991901]
[1760545072620,0.18021265,110980.0,110970.0,0.08969012]
[1760545073038,0.18034638,110990.0,110970.0,0.26991901]
[1760545073444,0.18034638,110990.0,110970.0,0.74611441]
[1760545074281,0.18021265,110980.0,110970.0,0.74711441]
[1760545075150,0.18021265,110980.0,110970.0,0.74611441]
[1760545075367,0.18034638,110990.0,110970.0,0.74711441]
[1760545075580,0.18034638,110990.0,110980.0,0.65640805]
[1760545076046,0.00014997,110990.0,110980.0,0.65640805]
[1760545076462,0.00014997,110990.0,110980.0,0.18021265]
[1760545076672,0.00014997,110990.0,110980.0,0.65640805]
[1760545076876,0.18034638,110990.0,110980.0,0.65640805]
[1760545077905,0.18034638,110990.0,110970.0,0.26991901]
[1760545077906,0.18034638,110990.0,110970.0,0.74611441]
[1760545078117,0.18021265,110980.0,110970.0,0.56588552]
[1760545078329,0.18021265,110980.0,110970.0,0.08969012]
[1760545078798,0.18022889,110970.0,110960.0,0.18024503]
[1760545079036,0.18022889,110970.0,110960.0,0.26993515]
[1760545079257,0.18022889,110970.0,110960.0,0.74613055]
[1760545079474,0.18021265,110980.0,110970.0,0.18022889]
[1760545079936,0.18021265,110980.0,110960.0,0.74613055]
[1760545080147,0.18021265,110980.0,110970.0,0.18022889]
[1760545080358,0.18022889,110970.0,110960.0,0.74613045]
[1760545080578,0.18021265,110980.0,110970.0,0.18022889]
[1760545081747,0.18021265,110980.0,110960.0,0.74612795]
[1760545081957,0.18021265,110980.0,110970.0,0.18022889]
[1760545082182,0.18021265,110980.0,110960.0,0.74612795]
[1760545082376,0.18022889,110970.0,110960.0,0.26993525]
[1760545082634,0.18021265,110980.0,110960.0,0.26993525]
[1760545082895,0.35677233,110980.0,110970.0,0.18022889]
[1760545083118,0.52021265,110980.0,110970.0,0.65642429]
[1760545083332,0.53948271,110980.0,110970.0,0.65642429]
[1760545083560,0.53948271,110980.0,110970.0,0.18022889]
[1760545083781,0.53948271,110980.0,110960.0,0.74613065]
[1760545084003,0.18022889,110970.0,110960.0,0.08969012]
[1760545084223,0.18022889,110970.0,110960.0,0.26993525]
[1760545084429,0.56351921,110980.0,110960.0,0.74613065]
[1760545084641,0.55626641,110980.0,110960.0,0.74613065]
[1760545084895,0.18022889,110970.0,110960.0,0.74613065]
[1760545085067,0.18024513,110960.0,110950.0,0.66546023]
[1760545085326,0.18024513,110960.0,110950.0,0.75515035]
[1760545085570,0.18022889,110970.0,110950.0,0.26995149]
[1760545085745,0.2210432,110970.0,110950.0,0.74614689]
[1760545086214,0.2210432,110970.0,110950.0,0.2699438]
[1760545086429,0.1970067,110970.0,110950.0,0.2699438]
[1760545086658,0.5610432,110970.0,110960.0,0.18024513]
[1760545086871,0.53949895,110970.0,110960.0,0.18024513]
[1760545087081,0.53949895,110970.0,110950.0,0.7461392]
[1760545087293,0.18024513,110960.0,110950.0,0.7461392]
[1760545087535,0.35927006,110970.0,110960.0,0.18024513]
[1760545087752,0.53949183,110980.0,110970.0,0.18022889]
[1760545088220,0.53949183,110980.0,110960.0,0.74613065]
[1760545088444,0.18024513,110960.0,110950.0,0.4761954]
[1760545088656,0.18024513,110960.0,110950.0,0.26995149]
[1760545089274,0.18022889,110970.0,110960.0,0.18024513]
[1760545089484,0.52022889,110970.0,110960.0,0.18024513]
[1760545089692,0.52022889,110970.0,110950.0,0.74614689]
[1760545089900,0.53949895,110970.0,110960.0,0.18024513]
[1760545090110,0.53949895,110970.0,110960.0,0.65644053]
[1760545090315,0.53949895,110970.0,110950.0,0.27095149]
[1760545090504,0.53949895,110970.0,110960.0,0.18024513]
[1760545091152,0.53949895,110970.0,110950.0,0.74614689]
[1760545091390,0.18024513,110960.0,110930.0,0.26106066]
[1760545091598,0.18026137,110950.0,110930.0,0.08969012]
[1760545091811,0.18029387,110930.0,110920.0,8e-05]
[1760545092026,0.18027762,110940.0,110920.0,0.27007985]
[1760545092241,0.18027762,110940.0,110930.0,0.18029387]
[1760545092458,0.34,110950.0,110930.0,0.65648927]
[1760545092666,0.52026193,110950.0,110930.0,0.65648927]
[1760545092875,0.35927006,110950.0,110940.0,0.67450078]
[1760545093099,0.52026137,110950.0,110940.0,0.18027762]
[1760545093308,0.52026137,110950.0,110930.0,0.74632978]
[1760545093517,0.52026137,110950.0,110940.0,0.18027762]
[1760545093729,0.18026137,110950.0,110940.0,0.18679539]
[1760545093940,0.18026137,110950.0,110940.0,0.00651777]
[1760545094147,0.1581641,110960.0,110940.0,0.00651777]
[1760545094376,0.18026137,110950.0,110940.0,0.18027762]
[1760545095268,0.1581641,110960.0,110940.0,0.65647302]
[1760545095479,0.34902968,110960.0,110950.0,0.65645677]
[1760545095687,0.00902968,110960.0,110950.0,0.65645677]
[1760545096112,0.18024513,110960.0,110950.0,0.18026137]
[1760545096972,0.52022948,110970.0,110960.0,0.18024513]
[1760545097405,0.52022948,110970.0,110960.0,0.18676172]
[1760545097633,0.18022889,110970.0,110960.0,0.18676172]
[1760545097835,0.18022889,110970.0,110960.0,0.00651659]
[1760545099223,0.1892324,110980.0,110960.0,0.18676172]
[1760545099443,0.1892324,110980.0,110960.0,0.65644053]
[1760545099660,0.1802166,110980.0,110970.0,0.18022889]
[1760545099880,0.18022889,110970.0,110960.0,0.65644053]
[1760545100089,0.18022889,110970.0,110960.0,0.18024513]
[1760545101175,0.1802166,110980.0,110970.0,0.18022889]
[1760545101388,0.1802166,110980.0,110960.0,0.65644053]
[1760545101650,0.18022889,110970.0,110960.0,0.65644053]
[1760545101864,0.1802166,110980.0,110960.0,0.65644053]
[1760545102092,0.1802166,110980.0,110960.0,0.18024513]
[1760545102093,0.18022889,110970.0,110960.0,0.18024513]
[1760545104229,0.1893106,110980.0,110960.0,0.18024513]
[1760545104656,0.1893106,110980.0,110960.0,0.65644053]
[1760545104864,0.1893106,110980.0,110970.0,0.00651601]
[1760545108564,0.35929505,111000.0,110980.0,0.18021265]
[1760545108808,0.35929505,111000.0,110990.0,0.65639181]
[1760545108809,0.00014997,111000.0,110990.0,0.65639181]
[1760545109060,0.00014997,111000.0,110990.0,0.66290664]
[1760545109560,0.18033015,111000.0,110990.0,0.18671124]
[1760545110440,0.00014997,111000.0,110990.0,0.92224728]
[1760545110682,0.00014997,111000.0,110990.0,1.0119374]
[1760545111343,0.00014997,111000.0,110990.0,1.3519374]
[1760545111563,0.00014997,111000.0,110990.0,0.61640136]
[1760545111776,0.00014997,111000.0,110990.0,1.3519374]
[1760545112061,0.18033015,111000.0,110990.0,0.09720495]
[1760545112274,0.18033015,111000.0,110990.0,0.00751483]
[1760545112503,0.18033015,111000.0,110990.0,0.18771124]
[1760545112709,0.00014997,111000.0,110990.0,0.92324728]
[1760545113396,0.18033015,111000.0,110990.0,0.18671124]
[1760545113834,0.18033015,111000.0,110990.0,0.18771124]
[1760545114225,0.00014997,111000.0,110990.0,0.27640136]
[1760545114429,0.00014997,111000.0,110990.0,1.3519374]
[1760545114907,0.00014997,111000.0,110990.0,1.40107596]
[1760545115033,0.00014997,111000.0,110990.0,1.4661774]
[1760545115641,0.00014997,111000.0,110990.0,1.3519374]
[1760545115857,0.00014997,111000.0,110990.0,1.4661774]
[1760545116266,0.00014997,111000.0,110990.0,1.3519374]
[1760545116478,0.00014997,111000.0,110990.0,1.4661774]
[1760545116678,0.00014997,111000.0,110990.0,1.3529374]
[1760545116881,0.00014997,111000.0,110990.0,1.4671774]
[1760545117308,0.00014997,111000.0,110990.0,1.4661374]
[1760545117515,0.00014997,111000.0,110990.0,1.3539374]
[1760545117762,0.00014997,111000.0,110990.0,1.4681374]
[1760545118137,0.00014997,111000.0,110990.0,1.3539374]
[1760545118340,0.00014997,111000.0,110990.0,1.4681374]
[1760545118756,0.00014997,111000.0,110990.0,1.3539374]
[1760545119633,0.00014997,111000.0,110990.0,1.3529374]
[1760545119844,0.00014997,111000.0,110990.0,1.4671374]
[1760545120059,0.00014997,111000.0,110990.0,1.3539374]
[1760545120250,0.00014997,111000.0,110990.0,1.3529374]
[1760545120480,0.00014997,111000.0,110990.0,0.43820495]
[1760545120719,0.00014997,111000.0,110990.0,0.27740136]
[1760545121030,0.00014997,111000.0,110990.0,0.27640136]
[1760545121182,0.18033015,111000.0,110990.0,0.27740136]
[1760545121405,0.18033015,111000.0,110990.0,0.27840136]
[1760545121795,0.00014997,111000.0,110990.0,1.0129374]
[1760545122835,0.00014997,111000.0,110990.0,1.0119374]
[1760545123878,0.00014997,111000.0,110990.0,0.27640136]
[1760545124769,0.18033015,111000.0,110990.0,0.09620495]
[1760545124983,0.18033015,111000.0,110990.0,0.00651483]
[1760545125437,0.18954234,111000.0,110990.0,0.00651483]
[1760545129587,0.18954234,111000.0,110990.0,0.18671124]
[1760545130235,0.18033015,111000.0,110990.0,0.18671124]
[1760545130659,0.00014997,111000.0,110990.0,0.18671124]
[1760545130864,0.00014997,111000.0,110990.0,1.0119374]
[1760545131509,0.00014997,111000.0,110990.0,0.27640136]
[1760545135738,0.00014997,111000.0,110990.0,1.0119374]
[1760545137238,0.18033015,111000.0,110990.0,0.09620495]
[1760545137697,0.00014997,111000.0,110990.0,0.27740136]
[1760545138522,0.18033015,111000.0,110990.0,0.27640136]
[1760545139146,0.00014997,111000.0,110990.0,0.27640136]
[1760545139832,0.00014997,111000.0,110990.0,1.0119374]
[1760545140300,0.00014997,111000.0,110990.0,0.27640136]
[1760545140949,0.00014997,111000.0,110990.0,1.0119374]
[1760545141169,0.00014997,111000.0,110990.0,1.3519374]
[1760545141618,0.00014997,111000.0,110990.0,1.4660974]
[1760545142468,0.00014997,111000.0,110990.0,1.3519374]
[1760545142706,0.00014997,111000.0,110990.0,1.38811968]
[1760545142931,0.00014997,111000.0,110990.0,1.50227968]
[1760545143167,0.00014997,111000.0,110990.0,1.43825824]
[1760545143374,0.00014997,111000.0,110990.0,1.38811968]
[1760545143588,0.00014997,111000.0,110990.0,1.38911968]
[1760545144032,0.00014997,111000.0,110990.0,1.50327968]
[1760545144262,0.00014997,111000.0,110990.0,1.39011968]
[1760545144474,0.00014997,111000.0,110990.0,1.38911968]
[1760545144682,0.00014997,111000.0,110990.0,1.50427968]
[1760545145116,0.00014997,111000.0,110990.0,1.39011968]
[1760545145340,0.13338087,111030.0,111020.0,0.18014772]
[1760545145556,0.13338087,111030.0,111020.0,0.26983784]
[1760545145771,0.18011785,111040.0,111020.0,0.27635091]
[1760545145987,0.18011785,111040.0,111030.0,0.01544024]
[1760545145988,0.18026818,111040.0,111030.0,0.01544024]
[1760545146682,0.18026818,111040.0,111030.0,0.19557173]
[1760545146889,0.18026818,111040.0,111020.0,0.26983784]
[1760545147107,0.18026818,111040.0,111030.0,0.28317385]
[1760545147318,0.18026818,111040.0,111030.0,0.26982161]
[1760545148152,0.18026818,111040.0,111030.0,0.08969012]
[1760545149688,0.00015033,111040.0,111030.0,0.28770422]
[1760545149895,0.1802656,111040.0,111030.0,0.26982161]
[1760545151159,0.1802656,111040.0,111030.0,0.08969012]
[1760545151288,0.1802656,111040.0,111030.0,0.0962026]
[1760545151493,0.1802656,111040.0,111030.0,0.29222166]
[1760545151720,0.1802656,111040.0,111030.0,0.27633409]
[1760545152152,0.00015033,111040.0,111030.0,0.27633409]
[1760545152354,0.1802656,111040.0,111030.0,0.27633409]
[1760545152559,0.00015033,111040.0,111030.0,0.27633409]
[1760545153009,0.00015033,111040.0,111030.0,1.01187013]
[1760545154225,0.1802656,111040.0,111030.0,1.01187013]
[1760545154454,0.1802656,111040.0,111030.0,0.0962026]
[1760545155063,0.1802656,111040.0,111030.0,0.27633409]
[1760545155273,0.1802656,111040.0,111030.0,0.0962026]
[1760545155729,0.1802656,111040.0,111030.0,0.29375924]
[1760545155874,0.1802656,111040.0,111030.0,0.27633409]
[1760545157161,0.00015033,111040.0,111030.0,0.27633409]
[1760545157371,0.00015033,111040.0,111030.0,1.01187013]
[1760545158432,0.00015033,111040.0,111030.0,0.27633409]
[1760545158651,0.00015033,111040.0,111030.0,1.01187013]
[1760545159522,0.00015033,111040.0,111030.0,0.27633409]
[1760545160148,0.00015033,111040.0,111030.0,0.27733409]
[1760545161031,0.1802656,111040.0,111030.0,0.0972026]
[1760545161249,0.00015033,111040.0,111030.0,0.27733409]
[1760545162332,0.00015033,111040.0,111030.0,0.27633409]
[1760545167364,0.00015033,111040.0,111030.0,1.01187013]
[1760545167797,0.00015033,111040.0,111030.0,0.27633409]
[1760545171097,0.00015033,111040.0,111030.0,0.0962026]
[1760545171098,0.1802656,111040.0,111030.0,0.0962026]
[1760545171314,0.1802656,111040.0,111030.0,0.27633409]
[1760545171526,0.00015033,111040.0,111030.0,0.75140591]
[1760545171756,0.17300457,111060.0,111040.0,0.18011527]
[1760545172020,0.18009979,111050.0,111040.0,0.18011527]
[1760545172243,0.18009979,111050.0,111030.0,0.74489343]
[1760545172466,0.18011527,111040.0,111030.0,0.74489343]
[1760545172688,0.18011527,111040.0,111030.0,0.08969012]
[1760545172908,0.11833961,111050.0,111030.0,0.27633409]
[1760545173121,0.11833961,111050.0,111030.0,0.26982161]
[1760545173427,0.11833961,111050.0,111030.0,0.18013149]
[1760545173637,0.11833961,111050.0,111040.0,0.18011527]
[1760545174087,0.18009905,111050.0,111040.0,0.65518709]
[1760545174561,0.18009905,111050.0,111040.0,0.18011527]
[1760545175005,0.18009905,111050.0,111030.0,0.18913806]
[1760545175213,0.18852604,111050.0,111030.0,0.27882818]
[1760545175413,0.18013149,111030.0,111020.0,0.00900738]
[1760545175622,0.18013149,111030.0,111020.0,0.69700023]
[1760545176275,0.18011527,111040.0,111030.0,0.18013149]
[1760545176467,0.18011527,111040.0,111020.0,0.69700023]
[1760545176701,0.18011527,111040.0,111030.0,0.18013149]
[1760545177118,0.18011527,111040.0,111020.0,0.69700023]
[1760545177329,0.18011527,111040.0,111030.0,0.18013149]
[1760545177537,0.189104,111050.0,111030.0,0.18013149]
[1760545177760,0.19753062,111050.0,111030.0,0.18013149]
[1760545177964,0.18011527,111040.0,111030.0,0.18013149]
[1760545178169,0.14943232,111050.0,111030.0,0.18013149]
[1760545178432,0.18011527,111040.0,111030.0,0.18013149]
[1760545178655,0.14943232,111050.0,111030.0,0.18013149]
[1760545178870,0.18011527,111040.0,111030.0,0.18013149]
[1760545179090,0.14943232,111050.0,111030.0,0.18664397]
[1760545179328,0.00842707,111050.0,111040.0,0.18011527]
[1760545179536,0.17350557,111060.0,111050.0,0.18009905]
[1760545179752,0.18901161,111060.0,111050.0,0.18009905]
[1760545180630,0.18901161,111060.0,111040.0,0.18011527]
[1760545181771,0.18009905,111050.0,111040.0,0.18011527]
[1760545182209,0.19076434,111060.0,111040.0,0.18011527]
[1760545182408,0.18901308,111060.0,111050.0,0.18009905]
[1760545182611,0.18901308,111060.0,111040.0,0.18011527]
[1760545182946,0.18901308,111060.0,111050.0,0.18009905]
[1760545183353,0.18901308,111060.0,111040.0,0.18011527]
[1760545183976,0.18901308,111060.0,111050.0,0.18009905]
[1760545184178,0.18901308,111060.0,111040.0,0.18011527]
[1760545184403,0.18901308,111060.0,111050.0,0.18009905]
[1760545184648,0.18901308,111060.0,111050.0,0.19810895]
[1760545184792,0.18901308,111060.0,111050.0,0.18009905]
[1760545185205,0.000501,111060.0,111050.0,0.18009905]
[1760545185611,0.18058383,111060.0,111050.0,0.18009905]
[1760545186260,0.000501,111060.0,111050.0,0.18009905]
[1760545186448,0.18058383,111060.0,111050.0,0.18009905]
[1760545186875,0.18009905,111050.0,111040.0,0.74492427]
[1760545187093,0.18058383,111060.0,111050.0,0.18009905]
[1760545188300,0.18009905,111050.0,111040.0,0.26980539]
[1760545188534,0.18058383,111060.0,111050.0,0.18009905]
[1760545190186,0.18058383,111060.0,111050.0,0.18661036]
[1760545193860,0.000501,111060.0,111050.0,0.18661036]
[1760545194264,0.18058383,111060.0,111050.0,0.18661036]
[1760545194466,0.000501,111060.0,111050.0,0.18661036]
[1760545194713,0.18058383,111060.0,111050.0,0.18661036]
[1760545196047,0.000501,111060.0,111050.0,0.18661036]
[1760545196318,0.18058383,111060.0,111050.0,0.18661036]
[1760545196730,0.000501,111060.0,111050.0,0.18661036]
[1760545197021,0.18058383,111060.0,111050.0,0.18661036]
[1760545197244,0.18058383,111060.0,111050.0,0.66172924]
[1760545197433,0.18058383,111060.0,111050.0,0.60449962]
[1760545197638,0.000501,111060.0,111050.0,0.60449962]
[1760545198068,0.18058383,111060.0,111050.0,0.60449962]
[1760545199112,0.18058383,111060.0,111050.0,0.18661036]
[1760545199325,0.18058383,111060.0,111050.0,0.60449962]
[1760545199722,0.18058383,111060.0,111050.0,0.00651131]
[1760545200060,0.18058383,111060.0,111050.0,0.18661036]
[1760545200259,0.18058383,111060.0,111050.0,0.00651131]
[1760545200458,0.18058383,111060.0,111050.0,0.18661036]
[1760545200663,0.18058383,111060.0,111050.0,0.00651131]
[1760545201255,0.18058383,111060.0,111050.0,0.18661036]
[1760545201472,0.000501,111060.0,111050.0,0.60449962]
[1760545202494,0.18058383,111060.0,111050.0,0.18661036]
[1760545202709,0.59847309,111060.0,111050.0,0.00651131]
[1760545202957,0.18058383,111060.0,111050.0,0.60449962]
[1760545203294,0.18058383,111060.0,111050.0,0.18661036]
[1760545203520,0.18058383,111060.0,111050.0,0.20462026]
[1760545203952,0.18058383,111060.0,111050.0,0.62250952]
[1760545204155,0.18058383,111060.0,111050.0,0.60449962]
[1760545205347,0.18058383,111060.0,111050.0,0.18661036]
[1760545205756,0.18058383,111060.0,111050.0,0.00651131]
[1760545205968,0.59847309,111060.0,111050.0,0.00651131]
[1760545206832,1.51162368,111060.0,111050.0,0.00651131]
[1760545207083,6.53686866,111060.0,111050.0,0.00651131]
[1760545207410,6.98183953,111060.0,111050.0,0.00651131]
[1760545207626,7.00587603,111060.0,111050.0,0.00651131]
[1760545208041,7.00587603,111060.0,111050.0,1e-08]
[1760545208252,7.01473387,111060.0,111050.0,1e-08]
[1760545208487,7.00604639,111060.0,111050.0,1e-08]
[1760545208724,7.00704639,111060.0,111050.0,1e-08]
[1760545209821,6.59015713,111060.0,111050.0,1e-08]